[Event "Mistrovství Čech mládeže 2023 - HD16"]
[Site "Harrachov, Czech Republic"]
[Date "2023.10.28"]
[Round "9.8"]
[White "Síleš, Jan"]
[Black "Dudková, Josefína"]
[Result "1-0"]
[TimeControl "90m + 30s"]
[WhiteElo "1839"]
[BlackElo "1587"]

1. d4 {[%clk 01:30:54]} {[%emt 00:00:05]} d5 {[%clk 01:30:49]} {[%emt
00:00:11]} 2. c4 {[%clk 01:31:13]} {[%emt 00:00:12]} c6 {[%clk 01:31:11]}
{[%emt 00:00:08]} 3. Nf3 {[%clk 01:31:37]} {[%emt 00:00:06]} Nf6 {[%clk
01:31:25]} {[%emt 00:00:15]} 4. Nc3 {[%clk 01:31:55]} {[%emt 00:00:12]} Bf5
{[%clk 01:30:40]} {[%emt 00:01:15]} 5. cxd5 {[%clk 01:31:08]} {[%emt 00:01:17]}
Nxd5 {[%clk 01:24:51]} {[%emt 00:06:19]} 6. Qb3 {[%clk 01:30:29]} {[%emt
00:01:08]} b6 {[%clk 01:16:25]} {[%emt 00:08:56]} 7. Bg5 {[%clk 01:22:07]}
{[%emt 00:08:52]} g6 {[%clk 01:09:53]} {[%emt 00:07:03]} 8. e3 {[%clk
01:10:57]} {[%emt 00:11:40]} h6 {[%clk 00:49:56]} {[%emt 00:20:26]} 9. Bc4
{[%clk 00:58:40]} {[%emt 00:12:47]} Be6 {[%clk 00:39:26]} {[%emt 00:11:00]} 10.
Bh4 {[%clk 00:55:13]} {[%emt 00:03:57]} g5 {[%clk 00:36:34]} {[%emt 00:03:21]}
11. Bg3 {[%clk 00:54:25]} {[%emt 00:01:17]} b5 {[%clk 00:30:31]} {[%emt
00:06:34]} 12. Bxd5 {[%clk 00:52:06]} {[%emt 00:02:49]} Bxd5 {[%clk 00:30:46]}
{[%emt 00:00:15]} 13. Nxd5 {[%clk 00:51:46]} {[%emt 00:00:50]} Qxd5 {[%clk
00:31:01]} {[%emt 00:00:15]} 14. Be5 {[%clk 00:50:50]} {[%emt 00:01:26]} f6
{[%clk 00:27:40]} {[%emt 00:03:51]} 15. Bxb8 {[%clk 00:45:48]} {[%emt
00:05:32]} Rxb8 {[%clk 00:28:00]} {[%emt 00:00:09]} 16. Qc2 {[%clk 00:46:00]}
{[%emt 00:00:19]} Kf7 {[%clk 00:24:12]} {[%emt 00:04:18]} 17. O-O {[%clk
00:43:55]} {[%emt 00:02:36]} e6 {[%clk 00:22:59]} {[%emt 00:01:42]} 18. e4
{[%clk 00:38:28]} {[%emt 00:05:57]} Qd7 {[%clk 00:21:55]} {[%emt 00:01:34]} 19.
Rac1 {[%clk 00:35:31]} {[%emt 00:03:27]} Rc8 {[%clk 00:20:44]} {[%emt
00:01:41]} 20. d5 {[%clk 00:29:46]} {[%emt 00:06:15]} c5 {[%clk 00:19:33]}
{[%emt 00:01:40]} 21. dxe6+ {[%clk 00:25:57]} {[%emt 00:04:20]} Qxe6 {[%clk
00:19:41]} {[%emt 00:00:22]} 22. Nd4 {[%clk 00:24:51]} {[%emt 00:01:35]} Qe5
{[%clk 00:12:41]} {[%emt 00:07:30]} 23. Nxb5 {[%clk 00:20:42]} {[%emt
00:04:39]} a6 {[%clk 00:12:09]} {[%emt 00:01:03]} 24. Na3 {[%clk 00:20:27]}
{[%emt 00:00:45]} Bd6 {[%clk 00:10:06]} {[%emt 00:02:33]} 25. g3 {[%clk
00:20:53]} {[%emt 00:00:04]} Bb8 {[%clk 00:09:50]} {[%emt 00:00:46]} 26. Nc4
{[%clk 00:16:44]} {[%emt 00:04:38]} Qc7 {[%clk 00:09:51]} {[%emt 00:00:29]} 27.
Rcd1 {[%clk 00:16:05]} {[%emt 00:01:09]} Qe7 {[%clk 00:07:10]} {[%emt
00:03:11]} 28. Nb6 {[%clk 00:14:35]} {[%emt 00:02:01]} Rcd8 {[%clk 00:07:14]}
{[%emt 00:00:25]} 29. Nd5 {[%clk 00:14:26]} {[%emt 00:00:40]} Qa7 {[%clk
00:04:29]} {[%emt 00:03:15]} 30. Qc4 {[%clk 00:13:40]} {[%emt 00:01:17]} Kg7
{[%clk 00:04:26]} {[%emt 00:00:32]} 31. Ne3 {[%clk 00:13:10]} {[%emt 00:01:00]}
Be5 {[%clk 00:03:41]} {[%emt 00:01:15]} 32. Nf5+ {[%clk 00:12:51]} {[%emt
00:00:49]} Kg6 {[%clk 00:03:39]} {[%emt 00:00:33]} 33. h4 {[%clk 00:08:38]}
{[%emt 00:04:43]} Bxb2 {[%clk 00:01:35]} {[%emt 00:02:34]} 34. h5+ {[%clk
00:09:07]} Kh7 {[%clk 00:01:56]} {[%emt 00:00:09]} 35. Rb1 {[%clk 00:09:00]}
{[%emt 00:00:37]} Be5 {[%clk 00:01:39]} {[%emt 00:00:47]} 36. Rb6 {[%clk
00:08:41]} {[%emt 00:00:49]} Qd7 {[%clk 00:01:09]} {[%emt 00:01:00]} 37. Qxa6
{[%clk 00:05:57]} {[%emt 00:03:14]} Qe8 {[%clk 00:00:41]} {[%emt 00:00:58]} 38.
Rxf6 {[%clk 00:05:04]} {[%emt 00:01:23]} Bxf6 {[%clk 00:00:38]} {[%emt
00:00:33]} 39. Qxf6 {[%clk 00:05:32]} {[%emt 00:00:02]} Rd7 {[%clk 00:00:44]}
{[%emt 00:00:25]} 40. Qxh6+ {[%clk 00:03:52]} {[%emt 00:02:10]} Kg8 {[%clk
00:01:11]} {[%emt 00:00:03]} 41. Qxg5+ {[%clk 00:04:09]} {[%emt 00:00:13]} Kh7
{[%clk 00:00:56]} {[%emt 00:00:44]} 42. g4 {[%clk 00:02:55]} {[%emt 00:01:45]}
c4 {[%clk 00:00:52]} {[%emt 00:00:34]} 43. Rc1 {[%clk 00:02:06]} {[%emt
00:01:19]} c3 {[%clk 00:00:39]} {[%emt 00:00:43]} 44. Qe3 {[%clk 00:02:35]}
{[%emt 00:00:02]} Qb8 {[%clk 00:00:32]} {[%emt 00:00:37]} 45. Qh6+ {[%clk
00:01:55]} {[%emt 00:01:09]} Kg8 {[%clk 00:01:00]} {[%emt 00:00:01]} 46. Qg6+
{[%clk 00:02:11]} {[%emt 00:00:15]} Kf8 {[%clk 00:00:59]} {[%emt 00:00:30]} 47.
Qf6+ {[%clk 00:01:54]} {[%emt 00:00:47]} Kg8 {[%clk 00:01:18]} {[%emt
00:00:11]} 48. Qxc3 {[%clk 00:01:46]} {[%emt 00:00:38]} Qe8 {[%clk 00:00:40]}
{[%emt 00:01:08]} 49. Qc8 {[%clk 00:01:16]} {[%emt 00:01:00]} Rd8 {[%clk
00:00:41]} {[%emt 00:00:28]} 50. Qc4+ {[%clk 00:01:24]} {[%emt 00:00:22]} Kf8
{[%clk 00:00:38]} {[%emt 00:00:33]} 51. Qc3 {[%clk 00:01:11]} {[%emt 00:00:44]}
1-0

[Event "Mistrovství Čech mládeže 2023 - HD16"]
[Site "Harrachov, Czech Republic"]
[Date "2023.10.28"]
[Round "9.9"]
[White "Kaplanová, Dominika"]
[Black "Vlček, Vojtěch"]
[Result "0-1"]
[TimeControl "90m + 30s"]
[WhiteElo "1782"]
[BlackElo "1661"]

1. e4 {[%clk 01:30:51]} {[%emt 00:00:07]} c6 {[%clk 01:30:47]} {[%emt
00:00:14]} 2. d4 {[%clk 01:30:58]} {[%emt 00:00:23]} d5 {[%clk 01:31:13]}
{[%emt 00:00:04]} 3. e5 {[%clk 01:31:09]} {[%emt 00:00:18]} Bf5 {[%clk
01:31:42]} {[%emt 00:00:02]} 4. Nd2 {[%clk 01:31:13]} {[%emt 00:00:26]} e6
{[%clk 01:31:33]} {[%emt 00:00:39]} 5. Nb3 {[%clk 01:31:13]} {[%emt 00:00:29]}
Nd7 {[%clk 01:29:51]} {[%emt 00:02:13]} 6. Nf3 {[%clk 01:30:28]} {[%emt
00:01:16]} Ne7 {[%clk 01:23:31]} {[%emt 00:06:51]} 7. Be2 {[%clk 01:29:41]}
{[%emt 00:01:15]} Bg6 {[%clk 01:22:40]} {[%emt 00:01:21]} 8. O-O {[%clk
01:29:09]} {[%emt 00:01:02]} Qb6 {[%clk 01:21:41]} {[%emt 00:01:30]} 9. a4
{[%clk 01:27:05]} {[%emt 00:02:34]} a6 {[%clk 01:19:11]} {[%emt 00:03:01]} 10.
Bd2 {[%clk 01:23:28]} {[%emt 00:04:07]} Nf5 {[%clk 01:10:57]} {[%emt 00:08:45]}
11. a5 {[%clk 01:19:31]} {[%emt 00:04:27]} Qc7 {[%clk 01:05:56]} {[%emt
00:05:30]} 12. g4 {[%clk 01:17:06]} {[%emt 00:02:54]} Ne7 {[%clk 01:04:59]}
{[%emt 00:01:28]} 13. Nh4 {[%clk 01:12:58]} {[%emt 00:04:37]} c5 {[%clk
01:00:04]} {[%emt 00:05:26]} 14. dxc5 {[%clk 01:04:13]} {[%emt 00:09:14]} Nxc5
{[%clk 00:48:51]} {[%emt 00:11:44]} 15. Nxc5 {[%clk 01:01:39]} {[%emt
00:03:04]} Qxc5 {[%clk 00:49:12]} {[%emt 00:00:10]} 16. c3 {[%clk 01:00:52]}
{[%emt 00:01:16]} Nc6 {[%clk 00:45:42]} {[%emt 00:04:00]} 17. Be3 {[%clk
00:55:02]} {[%emt 00:06:19]} Qe7 {[%clk 00:45:00]} {[%emt 00:01:12]} 18. Ng2
{[%clk 00:50:24]} {[%emt 00:05:09]} Qd7 {[%clk 00:39:42]} {[%emt 00:05:48]} 19.
f4 {[%clk 00:42:29]} {[%emt 00:08:26]} Be4 {[%clk 00:39:55]} {[%emt 00:00:17]}
20. Bb6 {[%clk 00:38:06]} {[%emt 00:04:53]} Be7 {[%clk 00:38:17]} {[%emt
00:02:08]} 21. Bd3 {[%clk 00:36:22]} {[%emt 00:02:13]} Bxd3 {[%clk 00:36:33]}
{[%emt 00:02:15]} 22. Qxd3 {[%clk 00:36:26]} {[%emt 00:00:26]} Bd8 {[%clk
00:36:55]} {[%emt 00:00:08]} 23. Rfd1 {[%clk 00:28:18]} {[%emt 00:08:36]} Bxb6+
{[%clk 00:33:13]} {[%emt 00:04:13]} 24. axb6 {[%clk 00:28:14]} {[%emt
00:00:35]} Qe7 {[%clk 00:33:39]} {[%emt 00:00:04]} 25. b4 {[%clk 00:25:43]}
{[%emt 00:03:01]} O-O {[%clk 00:34:03]} {[%emt 00:00:07]} 26. Ne3 {[%clk
00:23:37]} {[%emt 00:02:35]} Rfd8 {[%clk 00:34:04]} {[%emt 00:00:29]} 27. b5
{[%clk 00:22:05]} {[%emt 00:02:02]} axb5 {[%clk 00:34:16]} {[%emt 00:00:19]} 28.
Qxb5 {[%clk 00:21:46]} {[%emt 00:00:48]} Ra3 {[%clk 00:33:17]} {[%emt
00:01:28]} 29. Qb2 {[%clk 00:18:09]} {[%emt 00:04:07]} Rda8 {[%clk 00:32:40]}
{[%emt 00:01:08]} 30. Rxa3 {[%clk 00:14:02]} {[%emt 00:04:37]} Qxa3 {[%clk
00:32:17]} {[%emt 00:00:53]} 31. Rb1 {[%clk 00:08:19]} {[%emt 00:06:12]} Qc5
{[%clk 00:27:44]} {[%emt 00:05:03]} 32. Kf2 {[%clk 00:03:48]} {[%emt 00:05:02]}
Ra4 {[%clk 00:25:55]} {[%emt 00:02:19]} 33. Kf3 {[%clk 00:02:24]} {[%emt
00:01:53]} Qa5 {[%clk 00:25:46]} {[%emt 00:00:32]} 34. Qb5 {[%clk 00:02:12]}
{[%emt 00:00:49]} Qxb5 {[%clk 00:26:06]} {[%emt 00:00:10]} 35. Rxb5 {[%clk
00:02:38]} {[%emt 00:00:03]} Ra3 {[%clk 00:26:29]} {[%emt 00:00:07]} 36. Rc5
{[%clk 00:01:44]} {[%emt 00:01:24]} Rb3 {[%clk 00:26:52]} {[%emt 00:00:07]} 37.
f5 {[%clk 00:01:30]} {[%emt 00:00:44]} Nxe5+ {[%clk 00:26:51]} {[%emt
00:00:31]} 38. Kg3 {[%clk 00:00:51]} {[%emt 00:01:08]} Nc6 {[%clk 00:27:04]}
{[%emt 00:00:17]} 39. Nc2 {[%clk 00:00:39]} {[%emt 00:00:42]} Rxb6 {[%clk
00:26:33]} {[%emt 00:01:01]} 40. Nd4 {[%clk 00:00:39]} {[%emt 00:00:30]} e5
{[%clk 00:18:47]} {[%emt 00:08:16]} 41. Nb5 {[%emt 00:00:24]} Ne7 {[%clk
00:18:08]} {[%emt 00:01:07]} 42. Nc7 {[%clk 00:00:36]} {[%emt 00:00:41]} Rc6
{[%clk 00:18:30]} {[%emt 00:00:08]} 43. Rxc6 {[%clk 00:00:34]} {[%emt
00:00:32]} bxc6 {[%clk 00:18:56]} {[%emt 00:00:04]} 44. Kf3 {[%clk 00:00:36]}
{[%emt 00:00:27]} f6 {[%clk 00:19:15]} {[%emt 00:00:11]} 45. Ne6 {[%clk
00:00:36]} {[%emt 00:00:30]} g6 {[%clk 00:19:16]} {[%emt 00:00:29]} 46. Nd8
{[%clk 00:00:34]} {[%emt 00:00:32]} Kf8 {[%clk 00:18:53]} {[%emt 00:00:52]} 47.
fxg6 {[%clk 00:00:39]} {[%emt 00:00:25]} hxg6 {[%clk 00:19:16]} {[%emt
00:00:07]} 48. h4 {[%clk 00:00:49]} {[%emt 00:00:21]} Kg7 {[%clk 00:17:36]}
{[%emt 00:02:09]} 49. Ne6+ {[%clk 00:00:40]} {[%emt 00:00:39]} Kh7 {[%clk
00:15:59]} {[%emt 00:02:01]} 50. Nd8 {[%clk 00:00:45]} {[%emt 00:00:31]} f5
{[%clk 00:15:29]} {[%emt 00:01:01]} 51. Nf7 {[%clk 00:00:39]} {[%emt 00:00:36]}
e4+ {[%clk 00:14:27]} {[%emt 00:01:32]} 52. Kf4 {[%clk 00:00:59]} {[%emt
00:00:09]} c5 {[%clk 00:14:36]} {[%emt 00:00:21]} 53. h5 {[%clk 00:00:35]}
{[%emt 00:00:55]} fxg4 {[%clk 00:11:01]} {[%emt 00:04:05]} 54. hxg6+ {[%clk
00:00:39]} {[%emt 00:00:26]} Nxg6+ {[%clk 00:10:05]} {[%emt 00:01:26]} 55. Kxg4
{[%clk 00:00:51]} {[%emt 00:00:19]} Kg7 {[%clk 00:10:30]} {[%emt 00:00:04]} 56.
Nd6 {[%clk 00:00:58]} {[%emt 00:00:23]} Kf6 {[%clk 00:10:32]} {[%emt 00:00:28]}
57. Kg3 {[%clk 00:00:33]} {[%emt 00:00:55]} Ne5 {[%clk 00:10:21]} {[%emt
00:00:41]} 58. Kf4 {[%clk 00:00:34]} {[%emt 00:00:29]} Ke6 {[%clk 00:10:14]}
{[%emt 00:00:36]} 59. Nb7 {[%clk 00:00:33]} {[%emt 00:00:32]} Nd3+ {[%clk
00:10:31]} {[%emt 00:00:12]} 60. Ke3 {[%clk 00:00:35]} {[%emt 00:00:28]} Ke5
{[%clk 00:10:55]} {[%emt 00:00:07]} 61. Na5 {[%clk 00:00:33]} {[%emt 00:00:31]}
d4+ {[%clk 00:10:08]} {[%emt 00:01:17]} 62. Kd2 {[%clk 00:00:32]} {[%emt
00:00:31]} Kd5 {[%clk 00:10:18]} {[%emt 00:00:19]} 63. cxd4 {[%clk 00:00:34]}
{[%emt 00:00:28]} cxd4 {[%clk 00:10:34]} {[%emt 00:00:14]} 64. Nb3 {[%clk
00:00:36]} {[%emt 00:00:28]} Nb4 {[%clk 00:10:28]} {[%emt 00:00:36]} 65. Na5
{[%clk 00:00:38]} {[%emt 00:00:29]} e3+ {[%clk 00:10:45]} {[%emt 00:00:13]} 66.
Ke1 {[%clk 00:00:31]} {[%emt 00:00:36]} Ke4 {[%clk 00:10:57]} {[%emt 00:00:18]}
67. Nb3 {[%clk 00:00:52]} {[%emt 00:00:10]} d3 {[%clk 00:10:58]} {[%emt
00:00:28]} 68. Kd1 {[%clk 00:00:45]} {[%emt 00:00:37]} Kf3 {[%clk 00:10:53]}
{[%emt 00:00:35]} 69. Nd4+ {[%clk 00:00:32]} {[%emt 00:00:43]} Kf2 {[%clk
00:11:19]} {[%emt 00:00:04]} 0-1

[Event "Mistrovství Čech mládeže 2023 - HD16"]
[Site "Harrachov, Czech Republic"]
[Date "2023.10.28"]
[Round "9.10"]
[White "Kučina, Ondřej"]
[Black "Novotný, Dominik"]
[Result "1/2-1/2"]
[TimeControl "90m + 30s"]
[WhiteElo "1592"]
[BlackElo "1929"]

1. d4 {[%clk 01:30:58]} Nf6 {[%clk 01:30:52]} {[%emt 00:00:09]} 2. g3 {[%clk
01:31:12]} {[%emt 00:00:16]} e6 {[%clk 01:31:02]} {[%emt 00:00:21]} 3. Bg2
{[%clk 01:31:35]} {[%emt 00:00:07]} d5 {[%clk 01:30:59]} {[%emt 00:00:33]} 4.
Nf3 {[%clk 01:31:37]} {[%emt 00:00:28]} b6 {[%clk 01:29:59]} {[%emt 00:01:30]}
5. O-O {[%clk 01:31:54]} {[%emt 00:00:12]} Be7 {[%clk 01:29:31]} {[%emt
00:00:58]} 6. c4 {[%clk 01:31:26]} {[%emt 00:00:58]} c6 {[%clk 01:28:22]}
{[%emt 00:01:39]} 7. cxd5 {[%clk 01:31:11]} {[%emt 00:00:45]} cxd5 {[%clk
01:28:05]} {[%emt 00:00:48]} 8. Nc3 {[%clk 01:31:02]} {[%emt 00:00:39]} O-O
{[%clk 01:26:37]} {[%emt 00:01:57]} 9. Re1 {[%clk 01:29:03]} {[%emt 00:02:28]}
Bb7 {[%clk 01:25:41]} {[%emt 00:01:27]} 10. Bf4 {[%clk 01:25:27]} {[%emt
00:04:06]} Nc6 {[%clk 01:24:01]} {[%emt 00:02:11]} 11. Rc1 {[%clk 01:24:11]}
{[%emt 00:01:46]} Rc8 {[%clk 01:20:30]} {[%emt 00:04:00]} 12. a3 {[%clk
01:23:31]} {[%emt 00:01:10]} 1/2-1/2

[Event "Mistrovství Čech mládeže 2023 - HD16"]
[Site "Harrachov, Czech Republic"]
[Date "2023.10.28"]
[Round "9.11"]
[White "Tesař, Jakub"]
[Black "Dobsa, Emma"]
[Result "1/2-1/2"]
[TimeControl "90m + 30s"]
[WhiteElo "1893"]
[BlackElo "1616"]

1. d4 {[%clk 01:30:42]} {[%emt 00:00:18]} d5 {[%clk 01:30:55]} {[%emt
00:00:05]} 2. c4 {[%clk 01:31:03]} {[%emt 00:00:09]} c6 {[%clk 01:31:23]}
{[%emt 00:00:03]} 3. Nf3 {[%clk 01:31:26]} {[%emt 00:00:07]} Nf6 {[%clk
01:31:52]} {[%emt 00:00:01]} 4. Nc3 {[%clk 01:31:46]} {[%emt 00:00:10]} dxc4
{[%clk 01:32:19]} {[%emt 00:00:04]} 5. a4 {[%clk 01:32:07]} {[%emt 00:00:08]}
Bf5 {[%clk 01:32:27]} {[%emt 00:00:22]} 6. Ne5 {[%clk 01:32:27]} {[%emt
00:00:10]} Nbd7 {[%clk 01:32:52]} {[%emt 00:00:05]} 7. Nxc4 {[%clk 01:32:49]}
{[%emt 00:00:08]} Nb6 {[%clk 01:33:18]} {[%emt 00:00:04]} 8. Ne5 {[%clk
01:33:04]} {[%emt 00:00:14]} a5 {[%clk 01:33:44]} {[%emt 00:00:05]} 9. g3
{[%clk 01:32:31]} {[%emt 00:01:02]} e6 {[%clk 01:28:47]} {[%emt 00:05:27]} 10.
Bg2 {[%clk 01:32:38]} {[%emt 00:00:23]} Nbd5 {[%clk 01:27:09]} {[%emt
00:02:08]} 11. Nxd5 {[%clk 00:48:19]} {[%emt 00:44:49]} exd5 {[%clk 01:26:28]}
{[%emt 00:01:11]} 12. Qb3 {[%clk 00:47:07]} {[%emt 00:01:42]} Bb4+ {[%clk
01:24:20]} {[%emt 00:02:39]} 13. Bd2 {[%clk 00:46:56]} {[%emt 00:00:41]} Bxd2+
{[%clk 01:22:40]} {[%emt 00:02:09]} 14. Kxd2 {[%clk 00:47:24]} {[%emt
00:00:02]} O-O {[%clk 01:13:02]} {[%emt 00:10:08]} 15. Rhc1 {[%clk 00:43:17]}
{[%emt 00:04:37]} Rb8 {[%clk 01:11:42]} {[%emt 00:01:51]} 16. Ke1 {[%clk
00:42:36]} {[%emt 00:01:11]} Re8 {[%clk 01:07:34]} {[%emt 00:04:39]} 17. Kf1
{[%clk 00:36:45]} {[%emt 00:06:21]} Qe7 {[%clk 00:59:59]} {[%emt 00:08:05]} 18.
Bf3 {[%clk 00:28:28]} {[%emt 00:08:48]} Ne4 {[%clk 00:54:45]} {[%emt 00:05:44]}
19. Bxe4 {[%clk 00:20:27]} {[%emt 00:08:31]} Bxe4 {[%clk 00:55:12]} {[%emt
00:00:02]} 20. Re1 {[%clk 00:17:09]} {[%emt 00:03:47]} Qe6 {[%clk 00:53:42]}
{[%emt 00:02:00]} 21. f3 {[%clk 00:17:15]} {[%emt 00:00:25]} Qh3+ {[%clk
00:52:56]} {[%emt 00:01:16]} 22. Kg1 {[%clk 00:17:41]} {[%emt 00:00:04]} Bf5
{[%clk 00:52:05]} {[%emt 00:01:21]} 23. e4 {[%clk 00:15:54]} {[%emt 00:02:16]}
Be6 {[%clk 00:51:32]} {[%emt 00:01:04]} 24. Qb6 {[%clk 00:12:11]} {[%emt
00:04:03]} Ra8 {[%clk 00:42:50]} {[%emt 00:09:23]} 25. Rac1 {[%clk 00:08:39]}
{[%emt 00:03:33]} f6 {[%clk 00:40:07]} {[%emt 00:03:41]} 26. Nd3 {[%clk
00:08:27]} {[%emt 00:00:42]} Qh5 {[%clk 00:35:44]} {[%emt 00:04:52]} 27. Re3
{[%clk 00:07:12]} {[%emt 00:01:46]} Qf7 {[%clk 00:33:18]} {[%emt 00:02:57]} 28.
Nc5 {[%clk 00:06:29]} {[%emt 00:01:13]} dxe4 {[%clk 00:31:01]} {[%emt
00:02:46]} 29. fxe4 {[%clk 00:04:59]} {[%emt 00:02:01]} Re7 {[%clk 00:29:45]}
{[%emt 00:01:47]} 30. Rd1 {[%clk 00:04:29]} {[%emt 00:00:59]} Bg4 {[%clk
00:28:48]} {[%emt 00:01:27]} 31. Rd2 {[%clk 00:03:57]} {[%emt 00:00:57]} Qc4
{[%clk 00:26:43]} {[%emt 00:02:40]} 32. Qb3 {[%clk 00:03:17]} {[%emt 00:01:10]}
Qxb3 {[%clk 00:27:06]} {[%emt 00:00:07]} 33. Rxb3 {[%clk 00:03:45]} {[%emt
00:00:02]} Rb8 {[%clk 00:25:51]} {[%emt 00:01:45]} 34. Na6 {[%clk 00:01:35]}
{[%emt 00:02:39]} Rd8 {[%clk 00:23:19]} {[%emt 00:03:03]} 35. Nc5 {[%clk
00:02:01]} {[%emt 00:00:04]} Rb8 {[%clk 00:23:41]} {[%emt 00:00:08]} 36. Kf2
{[%clk 00:01:20]} {[%emt 00:01:11]} Bh5 {[%clk 00:21:11]} {[%emt 00:03:00]} 37.
Rb6 {[%clk 00:01:01]} {[%emt 00:00:49]} Bf7 {[%clk 00:19:33]} {[%emt 00:02:07]}
38. d5 {[%clk 00:00:48]} {[%emt 00:00:43]} cxd5 {[%clk 00:14:31]} {[%emt
00:05:31]} 39. exd5 {[%clk 00:01:17]} {[%emt 00:00:02]} Re5 {[%clk 00:13:27]}
{[%emt 00:01:33]} 40. Rxb7 {[%clk 00:00:39]} {[%emt 00:01:09]} Rf5+ {[%clk
00:12:12]} {[%emt 00:01:45]} 41. Ke1 {[%clk 00:00:34]} {[%emt 00:00:34]} Re8+
{[%clk 00:11:39]} {[%emt 00:01:04]} 42. Re2 {[%clk 00:00:48]} {[%emt 00:00:17]}
Rxd5 {[%clk 00:09:48]} {[%emt 00:02:20]} 43. Rxe8+ {[%clk 00:00:34]} {[%emt
00:00:44]} Bxe8 {[%clk 00:10:12]} {[%emt 00:00:06]} 44. Nb3 {[%clk 00:01:00]}
{[%emt 00:00:03]} Bxa4 {[%clk 00:10:17]} {[%emt 00:00:25]} 45. Nd2 {[%clk
00:01:02]} {[%emt 00:00:27]} Re5+ {[%clk 00:09:35]} {[%emt 00:01:13]} 46. Kf1
{[%clk 00:01:17]} {[%emt 00:00:14]} Bb5+ {[%clk 00:09:20]} {[%emt 00:00:45]} 47.
Kg1 {[%clk 00:00:56]} {[%emt 00:00:50]} Re1+ {[%clk 00:08:47]} {[%emt
00:01:04]} 48. Kf2 {[%clk 00:01:21]} {[%emt 00:00:05]} Re2+ {[%clk 00:09:04]}
{[%emt 00:00:13]} 49. Kg1 {[%clk 00:00:40]} {[%emt 00:01:12]} Rg2+ {[%clk
00:05:20]} {[%emt 00:04:13]} 50. Kxg2 {[%clk 00:00:44]} {[%emt 00:00:26]} Bc6+
{[%clk 00:05:47]} {[%emt 00:00:03]} 51. Kf2 {[%clk 00:00:59]} {[%emt 00:00:13]}
Bxb7 {[%clk 00:06:13]} {[%emt 00:00:05]} 52. Ke3 {[%clk 00:00:56]} {[%emt
00:00:34]} Kf7 {[%clk 00:06:03]} {[%emt 00:00:39]} 53. Nc4 {[%clk 00:01:15]}
{[%emt 00:00:11]} Ke6 {[%clk 00:05:56]} {[%emt 00:00:37]} 54. Nxa5 {[%clk
00:01:33]} {[%emt 00:00:12]} Ba6 {[%clk 00:06:12]} {[%emt 00:00:14]} 55. Ke4
{[%clk 00:01:24]} {[%emt 00:00:41]} f5+ {[%clk 00:06:06]} {[%emt 00:00:36]} 56.
Kd4 {[%clk 00:01:23]} {[%emt 00:00:30]} g5 {[%clk 00:06:10]} {[%emt 00:00:26]}
57. Nc4 {[%clk 00:00:47]} {[%emt 00:01:07]} 1/2-1/2